[Event "*** Titled Tuesday Blitz"]
[Site "Chess.com"]
[Date "2020.12.01"]
[Round "2"]
[White "Lysiak_Poltorak"]
[Black "Son_of_Sultan"]
[Result "1-0"]
[WhiteElo "2363"]
[BlackElo "2609"]
[TimeControl "180+1"]
[EndTime "10:18:56 PST"]
[Termination "Lysiak_Poltorak won on time"]

1. d4 {[%clk 0:02:59.3]} 1... d6 {[%clk 0:02:55.3]} 2. c4 {[%clk 0:02:58.4]}
2... e5 {[%clk 0:02:54.6]} 3. Nc3 {[%clk 0:02:58.4]} 3... exd4 {[%clk
0:02:50.5]} 4. Qxd4 {[%clk 0:02:59.3]} 4... Nc6 {[%clk 0:02:50.1]} 5. Qd2 {[%clk
0:02:59.3]} 5... Nf6 {[%clk 0:02:47.3]} 6. e4 {[%clk 0:02:59.3]} 6... Be7 {[%clk
0:02:45.9]} 7. b3 {[%clk 0:02:59.2]} 7... O-O {[%clk 0:02:45.6]} 8. Bb2 {[%clk
0:02:59.8]} 8... a5 {[%clk 0:02:41]} 9. Nf3 {[%clk 0:02:50.7]} 9... a4 {[%clk
0:02:40]} 10. Rd1 {[%clk 0:02:50.6]} 10... axb3 {[%clk 0:02:34.6]} 11. axb3
{[%clk 0:02:51.5]} 11... Nd7 {[%clk 0:02:25.7]} 12. Bd3 {[%clk 0:02:47]} 12...
Nc5 {[%clk 0:02:24.7]} 13. Bc2 {[%clk 0:02:46.6]} 13... Nb4 {[%clk 0:02:15.8]}
14. O-O {[%clk 0:02:39.4]} 14... Bg4 {[%clk 0:02:03.7]} 15. Nd5 {[%clk
0:02:33.6]} 15... Nxd5 {[%clk 0:01:51]} 16. exd5 {[%clk 0:02:29.3]} 16... Bxf3
{[%clk 0:01:50.8]} 17. gxf3 {[%clk 0:02:27.9]} 17... Bf6 {[%clk 0:01:41.5]} 18.
Bc1 {[%clk 0:01:56.7]} 18... g6 {[%clk 0:01:32.1]} 19. f4 {[%clk 0:01:35.9]}
19... Ra2 {[%clk 0:01:31.3]} 20. b4 {[%clk 0:01:01.5]} 20... Nb3 {[%clk
0:01:25.9]} 21. Qd3 {[%clk 0:00:58.5]} 21... Nxc1 {[%clk 0:01:12.6]} 22. Rxc1
{[%clk 0:00:59.4]} 22... Bg7 {[%clk 0:01:00.2]} 23. Rfe1 {[%clk 0:00:53.9]}
23... Qf6 {[%clk 0:00:59.6]} 24. Qe4 {[%clk 0:00:44.4]} 24... Qh4 {[%clk
0:00:41.6]} 25. Re3 {[%clk 0:00:30.2]} 25... Bh6 {[%clk 0:00:35.1]} 26. Rf3
{[%clk 0:00:24.5]} 26... Rfa8 {[%clk 0:00:28.8]} 27. Re1 {[%clk 0:00:22]} 27...
Ra1 {[%clk 0:00:21.7]} 28. Rxa1 {[%clk 0:00:16.1]} 28... Rxa1+ {[%clk
0:00:20.5]} 29. Kg2 {[%clk 0:00:16.6]} 29... Qg4+ {[%clk 0:00:20.7]} 30. Rg3
{[%clk 0:00:16.9]} 30... Qxf4 {[%clk 0:00:20.1]} 31. Qxf4 {[%clk 0:00:17.3]}
31... Bxf4 {[%clk 0:00:19.6]} 32. Rf3 {[%clk 0:00:17.2]} 32... Be5 {[%clk
0:00:19.4]} 33. b5 {[%clk 0:00:16.8]} 33... Rc1 {[%clk 0:00:18.2]} 34. Bd3
{[%clk 0:00:16.6]} 34... f5 {[%clk 0:00:17.2]} 35. Re3 {[%clk 0:00:11.6]} 35...
Kf7 {[%clk 0:00:16.2]} 36. h3 {[%clk 0:00:11.2]} 36... Kf6 {[%clk 0:00:16]} 37.
Rf3 {[%clk 0:00:11.5]} 37... Bd4 {[%clk 0:00:13]} 38. Bf1 {[%clk 0:00:11.2]}
38... Rc2 {[%clk 0:00:12.3]} 39. Kg3 {[%clk 0:00:11.6]} 39... g5 {[%clk
0:00:11.3]} 40. Kg2 {[%clk 0:00:11]} 40... h5 {[%clk 0:00:10.7]} 41. Bd3 {[%clk
0:00:09.1]} 41... Rd2 {[%clk 0:00:07.9]} 42. Rxf5+ {[%clk 0:00:09.5]} 42... Ke7
{[%clk 0:00:07.3]} 43. Rf3 {[%clk 0:00:09.1]} 43... g4 {[%clk 0:00:07]} 44. hxg4
{[%clk 0:00:08.8]} 44... hxg4 {[%clk 0:00:07.9]} 45. Rg3 {[%clk 0:00:08.7]}
45... Be5 {[%clk 0:00:08.2]} 46. Re3 {[%clk 0:00:08.1]} 46... g3 {[%clk
0:00:08.1]} 47. Be2 {[%clk 0:00:05.9]} 47... gxf2 {[%clk 0:00:07.9]} 48. Kxf2
{[%clk 0:00:06.8]} 48... Kd7 {[%clk 0:00:08.2]} 49. Kf3 {[%clk 0:00:07.3]} 49...
Bd4 {[%clk 0:00:07.2]} 50. Re4 {[%clk 0:00:07.2]} 50... Be5 {[%clk 0:00:06.9]}
51. Re3 {[%clk 0:00:07.7]} 51... Kc8 {[%clk 0:00:06.7]} 52. Bd3 {[%clk
0:00:07.8]} 52... Kb8 {[%clk 0:00:06.8]} 53. Bf5 {[%clk 0:00:07.8]} 53... Ka7
{[%clk 0:00:06.7]} 54. Bd3 {[%clk 0:00:08.1]} 54... Kb6 {[%clk 0:00:06.9]} 55.
Ke4 {[%clk 0:00:08.5]} 55... Kc5 {[%clk 0:00:07.3]} 56. Re2 {[%clk 0:00:08.8]}
56... Rd1 {[%clk 0:00:07.2]} 57. Rc2 {[%clk 0:00:08.1]} 57... Re1+ {[%clk
0:00:07.1]} 58. Re2 {[%clk 0:00:08.5]} 58... Rf1 {[%clk 0:00:07]} 59. Rc2 {[%clk
0:00:09]} 59... Rf4+ {[%clk 0:00:06.9]} 60. Ke3 {[%clk 0:00:09.5]} 60... Rh4
{[%clk 0:00:07.8]} 61. Ra2 {[%clk 0:00:08.4]} 61... Bd4+ {[%clk 0:00:08.7]} 62.
Kf3 {[%clk 0:00:08.8]} 62... Rh3+ {[%clk 0:00:08.5]} 63. Ke4 {[%clk 0:00:02.1]}
1-0

[Event "*** Titled Tuesday Blitz"]
[Site "Chess.com"]
[Date "2020.12.01"]
[Round "2"]
[White "jens1102"]
[Black "AvitalBor"]
[Result "0-1"]
[WhiteElo "2314"]
[BlackElo "2675"]
[TimeControl "180+1"]
[EndTime "10:18:59 PST"]
[Termination "AvitalBor won by resignation"]

1. c4 {[%clk 0:03:00.1]} 1... b6 {[%clk 0:02:58.1]} 2. e4 {[%clk 0:02:57.2]}
2... Bb7 {[%clk 0:02:58.1]} 3. d3 {[%clk 0:02:57.6]} 3... e5 {[%clk 0:02:57.7]}
4. Nf3 {[%clk 0:02:57.2]} 4... Nc6 {[%clk 0:02:56.4]} 5. Nc3 {[%clk 0:02:57.3]}
5... Bc5 {[%clk 0:02:56]} 6. Be3 {[%clk 0:02:56.9]} 6... d6 {[%clk 0:02:55.6]}
7. d4 {[%clk 0:02:52]} 7... exd4 {[%clk 0:02:55.6]} 8. Nxd4 {[%clk 0:02:52.9]}
8... Nf6 {[%clk 0:02:56]} 9. f3 {[%clk 0:02:37.6]} 9... O-O {[%clk 0:02:55.1]}
10. Qd2 {[%clk 0:02:38.1]} 10... Nxd4 {[%clk 0:02:49.9]} 11. Bxd4 {[%clk
0:02:38.1]} 11... Nd7 {[%clk 0:02:50.5]} 12. Be2 {[%clk 0:02:33.5]} 12... f5
{[%clk 0:02:42.6]} 13. Bxc5 {[%clk 0:02:26.9]} 13... Nxc5 {[%clk 0:02:40.1]} 14.
exf5 {[%clk 0:01:54.9]} 14... Rxf5 {[%clk 0:02:39.5]} 15. O-O-O {[%clk
0:01:55.8]} 15... a6 {[%clk 0:02:36.4]} 16. Bd3 {[%clk 0:01:54.6]} 16... Re5
{[%clk 0:02:32]} 17. Rde1 {[%clk 0:01:47.1]} 17... Qf6 {[%clk 0:02:26.9]} 18.
Bc2 {[%clk 0:01:38.7]} 18... b5 {[%clk 0:02:17.8]} 19. Rxe5 {[%clk 0:00:50.2]}
19... Qxe5 {[%clk 0:02:16.6]} 20. Re1 {[%clk 0:00:50.4]} 20... Qf6 {[%clk
0:02:12]} 21. Nd5 {[%clk 0:00:42.2]} 21... Qf7 {[%clk 0:02:10.2]} 22. Re7 {[%clk
0:00:40.6]} 22... Bxd5 {[%clk 0:02:09.8]} 23. Rxf7 {[%clk 0:00:36.4]} 23... Bxf7
{[%clk 0:02:10.7]} 24. b4 {[%clk 0:00:25.5]} 24... Nd7 {[%clk 0:01:55.6]} 25. c5
{[%clk 0:00:24.8]} 25... Ne5 {[%clk 0:01:55.4]} 26. cxd6 {[%clk 0:00:21.3]}
26... Nc4 {[%clk 0:01:55.6]} 27. Qd3 {[%clk 0:00:16]} 27... cxd6 {[%clk
0:01:49]} 28. Qxh7+ {[%clk 0:00:15.5]} 28... Kf8 {[%clk 0:01:49.5]} 29. Qh8+
{[%clk 0:00:16.1]} 29... Bg8 {[%clk 0:01:49.8]} 30. Be4 {[%clk 0:00:15.1]} 30...
Rc8 {[%clk 0:01:47.4]} 31. Qh3 {[%clk 0:00:14.5]} 31... Nb6+ {[%clk 0:01:42.4]}
32. Kd2 {[%clk 0:00:13.1]} 32... Ke7 {[%clk 0:01:28.7]} 33. Qh4+ {[%clk
0:00:11.6]} 33... Kf8 {[%clk 0:01:23.7]} 34. Qf4+ {[%clk 0:00:11.8]} 34... Ke7
{[%clk 0:01:23.4]} 35. Qg5+ {[%clk 0:00:12]} 35... Kf8 {[%clk 0:01:22.8]} 36. h4
{[%clk 0:00:10.8]} 36... Bxa2 {[%clk 0:01:20.7]} 37. h5 {[%clk 0:00:10.1]} 37...
Bf7 {[%clk 0:01:11.3]} 38. h6 {[%clk 0:00:10]} 38... gxh6 {[%clk 0:01:11.5]} 39.
Qxh6+ {[%clk 0:00:10.9]} 39... Ke7 {[%clk 0:01:12.1]} 40. Qg5+ {[%clk
0:00:11.3]} 40... Ke8 {[%clk 0:01:12.4]} 41. g4 {[%clk 0:00:10.8]} 41... Nc4+
{[%clk 0:01:12.5]} 42. Ke2 {[%clk 0:00:11.1]} 42... Ne5 {[%clk 0:01:12.5]} 43.
Qf5 {[%clk 0:00:07.7]} 43... Rc4 {[%clk 0:01:11.2]} 44. Qf6 {[%clk 0:00:06.6]}
44... Rxb4 {[%clk 0:01:01.3]} 45. g5 {[%clk 0:00:06.7]} 45... Rb2+ {[%clk
0:00:57.1]} 46. Ke3 {[%clk 0:00:04.8]} 46... Rg2 {[%clk 0:00:53.8]} 47. Kf4
{[%clk 0:00:04.1]} 47... Kd7 {[%clk 0:00:40.9]} 48. Bf5+ {[%clk 0:00:03.9]}
48... Kc6 {[%clk 0:00:40.5]} 49. Qe7 {[%clk 0:00:03.4]} 49... b4 {[%clk
0:00:37.5]} 50. Qd8 {[%clk 0:00:03.5]} 50... b3 {[%clk 0:00:34.4]} 51. Qc8+
{[%clk 0:00:03.9]} 51... Kb5 {[%clk 0:00:31.2]} 52. Bd7+ {[%clk 0:00:04.3]}
52... Kb4 {[%clk 0:00:25.1]} 53. Qb8+ {[%clk 0:00:04.7]} 53... Kc3 {[%clk
0:00:24.1]} 54. Qc7+ {[%clk 0:00:05.2]} 54... Nc4 {[%clk 0:00:23.5]} 55. Bf5
{[%clk 0:00:04.6]} 55... Bd5 {[%clk 0:00:20.3]} 56. Qg7+ {[%clk 0:00:04.8]}
56... Kb4 {[%clk 0:00:19.5]} 57. Qd4 {[%clk 0:00:04.9]} 57... Bf7 {[%clk
0:00:16.8]} 58. Bd3 {[%clk 0:00:03.3]} 58... b2 {[%clk 0:00:15.6]} 59. g6 {[%clk
0:00:03.6]} 59... Bg8 {[%clk 0:00:15.4]} 60. g7 {[%clk 0:00:03.6]} 60... d5
{[%clk 0:00:15.8]} 61. Qf6 {[%clk 0:00:03.4]} 61... Kb3 {[%clk 0:00:15]} 62. Qf8
{[%clk 0:00:04.1]} 62... Kc3 {[%clk 0:00:15]} 63. Qxg8 {[%clk 0:00:04.4]} 63...
Kxd3 {[%clk 0:00:15.5]} 64. Qxd5+ {[%clk 0:00:05.1]} 64... Kc3 {[%clk
0:00:15.8]} 65. Qb7 {[%clk 0:00:04.4]} 65... Kc2 {[%clk 0:00:15.3]} 66. Kf5
{[%clk 0:00:04.3]} 66... b1=Q {[%clk 0:00:15.1]} 67. Qe4+ {[%clk 0:00:04.4]}
67... Kb2 {[%clk 0:00:14.6]} 68. Qxb1+ {[%clk 0:00:05.3]} 68... Kxb1 {[%clk
0:00:15.5]} 69. Kf6 {[%clk 0:00:06.2]} 69... Nd6 {[%clk 0:00:15]} 70. f4 {[%clk
0:00:06.4]} 70... Ne8+ {[%clk 0:00:15.3]} 71. Kf7 {[%clk 0:00:06.2]} 71... Nxg7
{[%clk 0:00:16.2]} 72. f5 {[%clk 0:00:06.6]} 72... Nxf5 {[%clk 0:00:16.5]} 0-1

[Event "*** Titled Tuesday Blitz"]
[Site "Chess.com"]
[Date "2020.12.01"]
[Round "2"]
[White "lelya96"]
[Black "ApacheSVD"]
[Result "0-1"]
[WhiteElo "2227"]
[BlackElo "2436"]
[TimeControl "180+1"]
[EndTime "10:18:59 PST"]
[Termination "ApacheSVD won on time"]

1. e4 {[%clk 0:03:00.1]} 1... c5 {[%clk 0:02:58.4]} 2. Nf3 {[%clk 0:02:59.2]}
2... d6 {[%clk 0:02:56.9]} 3. d4 {[%clk 0:02:58.8]} 3... cxd4 {[%clk 0:02:57.8]}
4. Nxd4 {[%clk 0:02:59.1]} 4... Nf6 {[%clk 0:02:58.2]} 5. Nc3 {[%clk 0:02:59.3]}
5... g6 {[%clk 0:02:58.4]} 6. Bc4 {[%clk 0:02:56.6]} 6... Bg7 {[%clk 0:02:58.6]}
7. Be3 {[%clk 0:02:54]} 7... O-O {[%clk 0:02:58.8]} 8. f3 {[%clk 0:02:53.5]}
8... Nc6 {[%clk 0:02:59.1]} 9. Qd2 {[%clk 0:02:53.6]} 9... Bd7 {[%clk
0:02:59.5]} 10. O-O-O {[%clk 0:02:53.2]} 10... Rc8 {[%clk 0:02:59.8]} 11. Bb3
{[%clk 0:02:53.2]} 11... Nxd4 {[%clk 0:03:00.5]} 12. Bxd4 {[%clk 0:02:52.8]}
12... b5 {[%clk 0:03:01.4]} 13. Nd5 {[%clk 0:02:43.7]} 13... Nxd5 {[%clk
0:03:00.5]} 14. Bxd5 {[%clk 0:02:39.7]} 14... Bxd4 {[%clk 0:02:58.7]} 15. Qxd4
{[%clk 0:02:39.2]} 15... a5 {[%clk 0:02:59.5]} 16. e5 {[%clk 0:02:29.9]} 16...
Bf5 {[%clk 0:02:48.5]} 17. Be4 {[%clk 0:02:27.3]} 17... Rc4 {[%clk 0:02:47.2]}
18. Qd3 {[%clk 0:02:18.1]} 18... Bxe4 {[%clk 0:02:10.9]} 19. fxe4 {[%clk
0:02:17]} 19... Qc8 {[%clk 0:02:05.7]} 20. exd6 {[%clk 0:02:13.4]} 20... exd6
{[%clk 0:02:06.4]} 21. Rd2 {[%clk 0:02:12]} 21... Re8 {[%clk 0:02:02.5]} 22.
Qxd6 {[%clk 0:02:09.8]} 22... Rcxe4 {[%clk 0:02:02.8]} 23. Rhd1 {[%clk
0:02:08.6]} 23... Qc4 {[%clk 0:01:57.2]} 24. Kb1 {[%clk 0:02:05.9]} 24... Re2
{[%clk 0:01:49.3]} 25. Qd7 {[%clk 0:01:45.1]} 25... R8e7 {[%clk 0:01:22.9]} 26.
Qd8+ {[%clk 0:01:13.6]} 26... Kg7 {[%clk 0:01:22.8]} 27. Qxa5 {[%clk 0:01:13.2]}
27... Rxd2 {[%clk 0:00:37.9]} 28. Qxd2 {[%clk 0:01:07.3]} 28... Re2 {[%clk
0:00:38.3]} 29. Qc1 {[%clk 0:00:33.1]} 29... Rxg2 {[%clk 0:00:36.7]} 30. b3
{[%clk 0:00:33.5]} 30... Qc3 {[%clk 0:00:12.7]} 31. h4 {[%clk 0:00:32.8]} 31...
h5 {[%clk 0:00:11.2]} 32. Rf1 {[%clk 0:00:24.3]} 32... Rh2 {[%clk 0:00:05]} 33.
Qd1 {[%clk 0:00:18.9]} 33... Rxh4 {[%clk 0:00:03.5]} 34. Qd5 {[%clk 0:00:18.7]}
34... Qc7 {[%clk 0:00:01.2]} 35. Qxb5 {[%clk 0:00:17.1]} 35... Rg4 {[%clk
0:00:01.7]} 36. Qd3 {[%clk 0:00:14.4]} 36... Rg5 {[%clk 0:00:01.8]} 37. Qe3
{[%clk 0:00:14]} 37... Rf5 {[%clk 0:00:01.8]} 38. Qd4+ {[%clk 0:00:13.8]} 38...
Qe5 {[%clk 0:00:01]} 39. Qd1 {[%clk 0:00:09.6]} 39... Rxf1 {[%clk 0:00:01.3]}
40. Qxf1 {[%clk 0:00:10.1]} 40... g5 {[%clk 0:00:02.2]} 41. a4 {[%clk
0:00:07.6]} 41... h4 {[%clk 0:00:02.8]} 42. Qg2 {[%clk 0:00:07]} 42... Kg6
{[%clk 0:00:02.5]} 43. a5 {[%clk 0:00:06.6]} 43... Qxa5 {[%clk 0:00:02.5]} 44.
Qe4+ {[%clk 0:00:05.5]} 44... f5 {[%clk 0:00:03]} 45. Qe6+ {[%clk 0:00:05.2]}
45... Kh5 {[%clk 0:00:03.5]} 46. Qe2+ {[%clk 0:00:03.7]} 46... g4 {[%clk
0:00:03.4]} 47. Qe8+ {[%clk 0:00:02.6]} 47... Kg5 {[%clk 0:00:04]} 48. Qe7+
{[%clk 0:00:02.9]} 48... Kf4 {[%clk 0:00:04.2]} 49. Qxh4 {[%clk 0:00:02.9]}
49... Qc3 {[%clk 0:00:03.5]} 50. Qf2+ {[%clk 0:00:02.8]} 50... Qf3 {[%clk
0:00:03.5]} 51. Qd4+ {[%clk 0:00:02.8]} 51... Qe4 {[%clk 0:00:04.2]} 52. Qf2+
{[%clk 0:00:02.8]} 52... Ke5 {[%clk 0:00:03.1]} 53. Qg3+ {[%clk 0:00:02.4]}
53... Qf4 {[%clk 0:00:03.1]} 54. Qc3+ {[%clk 0:00:02.2]} 54... Qd4 {[%clk
0:00:03.7]} 55. Qg3+ {[%clk 0:00:02.1]} 55... Kf6 {[%clk 0:00:03.7]} 56. Qh4+
{[%clk 0:00:01.7]} 56... Ke6 {[%clk 0:00:03.9]} 57. Qh6+ {[%clk 0:00:01.4]}
57... Ke5 {[%clk 0:00:03.6]} 58. Qg7+ {[%clk 0:00:01.8]} 58... Ke4 {[%clk
0:00:04.1]} 59. Qe7+ {[%clk 0:00:02.2]} 59... Qe5 {[%clk 0:00:04.4]} 60. Qb7+
{[%clk 0:00:02.3]} 60... Ke3 {[%clk 0:00:04.9]} 61. Qb6+ {[%clk 0:00:01.8]}
61... Ke2 {[%clk 0:00:04.9]} 62. Qa6+ {[%clk 0:00:01.8]} 62... Kf2 {[%clk
0:00:05]} 63. Qd3 {[%clk 0:00:02.3]} 63... Qe1+ {[%clk 0:00:04.9]} 64. Kb2
{[%clk 0:00:02.3]} 64... Qe5+ {[%clk 0:00:05.8]} 65. c3 {[%clk 0:00:02.2]} 65...
g3 {[%clk 0:00:05.6]} 0-1

[Event "*** Titled Tuesday Blitz"]
[Site "Chess.com"]
[Date "2020.12.01"]
[Round "2"]
[White "Iskusnyh"]
[Black "GM4life"]
[Result "1-0"]
[WhiteElo "2628"]
[BlackElo "2327"]
[TimeControl "180+1"]
[EndTime "10:19:01 PST"]
[Termination "Iskusnyh won by resignation"]

1. d4 {[%clk 0:03:00.9]} 1... Nf6 {[%clk 0:02:58.9]} 2. c4 {[%clk 0:03:00.7]}
2... e6 {[%clk 0:02:57.9]} 3. g3 {[%clk 0:03:00.4]} 3... d5 {[%clk 0:02:57.8]}
4. Nf3 {[%clk 0:02:59.7]} 4... Be7 {[%clk 0:02:58.2]} 5. Bg2 {[%clk 0:02:58.9]}
5... O-O {[%clk 0:02:58.8]} 6. O-O {[%clk 0:02:59.3]} 6... dxc4 {[%clk
0:02:59.3]} 7. Qa4 {[%clk 0:02:58.4]} 7... a6 {[%clk 0:02:59]} 8. Qxc4 {[%clk
0:02:59]} 8... b5 {[%clk 0:02:59.1]} 9. Qc2 {[%clk 0:02:59.5]} 9... Bb7 {[%clk
0:02:59.7]} 10. Bd2 {[%clk 0:03:00.2]} 10... Be4 {[%clk 0:02:59.5]} 11. Qc1
{[%clk 0:02:59.6]} 11... Ra7 {[%clk 0:02:58]} 12. Rd1 {[%clk 0:02:41.9]} 12...
Nbd7 {[%clk 0:02:56.3]} 13. Ba5 {[%clk 0:02:36.9]} 13... Qa8 {[%clk 0:02:53.7]}
14. Nbd2 {[%clk 0:02:35.5]} 14... Bd5 {[%clk 0:02:52.3]} 15. b4 {[%clk
0:02:16.8]} 15... Bd6 {[%clk 0:02:41.7]} 16. Qc2 {[%clk 0:02:10.8]} 16... e5
{[%clk 0:02:40.5]} 17. dxe5 {[%clk 0:01:54.5]} 17... Nxe5 {[%clk 0:02:40.3]} 18.
Rac1 {[%clk 0:01:28.4]} 18... Re8 {[%clk 0:02:28.9]} 19. Nh4 {[%clk 0:00:50.2]}
19... Bxg2 {[%clk 0:02:26.3]} 20. Nxg2 {[%clk 0:00:50]} 20... Nd5 {[%clk
0:02:18.8]} 21. a3 {[%clk 0:00:47.6]} 21... h6 {[%clk 0:01:53.2]} 22. Qb3 {[%clk
0:00:42.7]} 22... c6 {[%clk 0:01:49.4]} 23. e4 {[%clk 0:00:39.7]} 23... Nf6
{[%clk 0:01:47.4]} 24. f4 {[%clk 0:00:39.1]} 24... Nc4 {[%clk 0:01:29.6]} 25.
Nxc4 {[%clk 0:00:37.3]} 25... bxc4 {[%clk 0:01:28.9]} 26. Qxc4 {[%clk
0:00:37.1]} 26... Rxe4 {[%clk 0:01:16.9]} 27. Qxc6 {[%clk 0:00:37]} 27... Qxc6
{[%clk 0:01:08.4]} 28. Rxc6 {[%clk 0:00:37.3]} 28... Be7 {[%clk 0:01:07]} 29.
Re1 {[%clk 0:00:37.3]} 29... Rd7 {[%clk 0:01:00.5]} 30. Rxe4 {[%clk 0:00:31]}
30... Nxe4 {[%clk 0:01:00.4]} 31. Rc1 {[%clk 0:00:30.6]} 31... Rd3 {[%clk
0:00:59.4]} 32. a4 {[%clk 0:00:29.6]} 32... Ra3 {[%clk 0:00:58.7]} 33. f5 {[%clk
0:00:28.7]} 33... Rxa4 {[%clk 0:00:58.2]} 34. Re1 {[%clk 0:00:28.1]} 34... Bxb4
{[%clk 0:00:56.1]} 35. Bxb4 {[%clk 0:00:27.1]} 35... Rxb4 {[%clk 0:00:55.9]} 36.
Nf4 {[%clk 0:00:27.7]} 36... Nf6 {[%clk 0:00:55.5]} 37. Ra1 {[%clk 0:00:25.6]}
37... Rb6 {[%clk 0:00:52.9]} 38. h3 {[%clk 0:00:25.8]} 38... Rd6 {[%clk
0:00:50.7]} 39. g4 {[%clk 0:00:25.3]} 39... Ne4 {[%clk 0:00:50.4]} 40. Kg2
{[%clk 0:00:25]} 40... Nc5 {[%clk 0:00:46.6]} 41. Rc1 {[%clk 0:00:21.8]} 41...
Rd2+ {[%clk 0:00:44.7]} 42. Kf3 {[%clk 0:00:20.9]} 42... Nd3 {[%clk 0:00:43.5]}
43. Rc8+ {[%clk 0:00:20.1]} 43... Kh7 {[%clk 0:00:41.2]} 44. Nxd3 {[%clk
0:00:16.8]} 44... Rxd3+ {[%clk 0:00:40.4]} 45. Kg2 {[%clk 0:00:17.3]} 45... Ra3
{[%clk 0:00:33.4]} 46. Rf8 {[%clk 0:00:16.7]} 46... f6 {[%clk 0:00:32.6]} 47.
Ra8 {[%clk 0:00:16.4]} 47... h5 {[%clk 0:00:32.7]} 48. Ra7 {[%clk 0:00:07.9]}
48... h4 {[%clk 0:00:31.9]} 49. Kh2 {[%clk 0:00:07.4]} 49... Kh6 {[%clk
0:00:32.1]} 50. Kg2 {[%clk 0:00:07]} 50... Rg3+ {[%clk 0:00:30.9]} 51. Kh2
{[%clk 0:00:07]} 51... Ra3 {[%clk 0:00:31.8]} 52. Kg2 {[%clk 0:00:07.4]} 52...
Kg5 {[%clk 0:00:30.8]} 53. Rxg7+ {[%clk 0:00:06]} 53... Kf4 {[%clk 0:00:31.4]}
54. Rf7 {[%clk 0:00:04.6]} 54... Ra2+ {[%clk 0:00:31.8]} 55. Kf1 {[%clk
0:00:04.5]} 55... Kf3 {[%clk 0:00:31.7]} 56. Ke1 {[%clk 0:00:04.3]} 56... Kg3
{[%clk 0:00:21.2]} 57. Rxf6 {[%clk 0:00:04]} 57... Kxh3 {[%clk 0:00:21.8]} 58.
Rb6 {[%clk 0:00:03.3]} 58... Kxg4 {[%clk 0:00:20.7]} 59. f6 {[%clk 0:00:03.9]}
59... Ra1+ {[%clk 0:00:20.2]} 60. Ke2 {[%clk 0:00:03.8]} 60... Ra2+ {[%clk
0:00:20.2]} 61. Ke1 {[%clk 0:00:03.8]} 61... Ra1+ {[%clk 0:00:20.2]} 62. Ke2
{[%clk 0:00:04.3]} 62... Ra4 {[%clk 0:00:20.1]} 63. f7 {[%clk 0:00:03]} 63...
Rf4 {[%clk 0:00:20.6]} 64. Rb4 {[%clk 0:00:03.4]} 64... Rxb4 {[%clk 0:00:19.3]}
65. f8=Q {[%clk 0:00:03.5]} 65... Rf4 {[%clk 0:00:20.2]} 66. Qg8+ {[%clk
0:00:03.9]} 66... Kf5 {[%clk 0:00:20]} 67. Qc8+ {[%clk 0:00:04.4]} 67... Kg5
{[%clk 0:00:19.5]} 68. Qxa6 {[%clk 0:00:05.2]} 68... Kg4 {[%clk 0:00:18.9]} 69.
Qc8+ {[%clk 0:00:05]} 69... Kg5 {[%clk 0:00:19.1]} 70. Ke3 {[%clk 0:00:05.3]}
70... Rf5 {[%clk 0:00:18.8]} 71. Qg8+ {[%clk 0:00:04.4]} 71... Kf6 {[%clk
0:00:18.6]} 72. Ke4 {[%clk 0:00:04.3]} 72... Re5+ {[%clk 0:00:18.4]} 73. Kf4
{[%clk 0:00:04.4]} 73... Rf5+ {[%clk 0:00:19]} 74. Kg4 {[%clk 0:00:05]} 74...
Rd5 {[%clk 0:00:17.8]} 75. Qxd5 {[%clk 0:00:04.4]} 1-0